Cogmind - Beta 11 @@@ ROGUE MODE // 2022.03.23 @ 14:23:42 Player: Laraso Result: Destroyed by G-34 Mercenary with Small Laser Performance ------------- Evolutions (1) 500 Regions Visited (4) 800 Robots Destroyed (44) 220 Value Destroyed (1407) 1407 Prototype IDs (3) 60 Alien Tech Used (0) 0 Bonus (143) 143 TOTAL SCORE: 3130 Bonus ------- High Alert Combat Kills 8 Follower Combat Kills 135 Cogmind --------- Core Integrity 0/400 Matter 260/300 Energy 43/265 System Corruption 7% Temperature Hot (254) Movement Walking (120) Location -9/Storage Parts ------- > --- POWER (1) -------- Improved Ion Engine > --- PROPULSION (4) --- Aluminum Leg Aluminum Leg Aluminum Leg Aluminum Leg > --- UTILITY (2) ------ Medium Storage Unit > --- WEAPON (2) ------- Advanced Beam Cannon Katana > --- INVENTORY (10) --- Improved Heat Sink Sensor Array Light Armor Plating Beam Rifle Beam Rifle Heavy Assault Rifle Peak State ------------ > --- POWER ------------ Improved Ion Engine > --- PROPULSION ------- Aluminum Leg Aluminum Leg Carbon-fiber Leg Carbon-fiber Leg > --- UTILITY ---------- Medium Storage Unit Core Shielding > --- WEAPON ----------- Advanced Beam Cannon Katana > --- INVENTORY -------- Light Angular Momentum Engine Aluminum Leg Aluminum Leg Improved Heat Sink Improved Heat Sink Medium Storage Unit Sensor Array Light Armor Plating Beam Rifle Beam Rifle [Rating: 20] Favorites ----------- Power Ion Engine Engine Ion Engine Propulsion Aluminum Leg Leg Aluminum Leg Utility Medium Storage Unit Device Shield Generator Storage Medium Storage Unit Protection Core Shielding Weapon Light Assault Rifle Energy Gun Medium Laser Energy Cannon Advanced Beam Cannon Ballistic Gun Light Assault Rifle Special Weapon Mining Laser Slashing Weapon Katana Build | -11 -10 -10 -9 -9 ------- Run | Scr Mat Min Mat Sto Slots Evolved 2 | . . . 2 . Power . | . . . . . Propulsion 2 | . . . 2 . Utility . | . . . . . Weapon . | . . . . . Parts Attached 46 | 6 8 3 9 20 Power 7 | 1 2 . 1 3 Engine 7 | 1 2 . 1 3 Core . | . . . . . Reactor . | . . . . . Propulsion 19 | 2 2 1 3 11 Treads . | . . . . . Leg 19 | 2 2 1 3 11 Wheel . | . . . . . Hover . | . . . . . Flight . | . . . . . Utility 7 | 1 3 . 2 1 Device 4 | . 2 . 2 . Storage 2 | 1 1 . . . Processor . | . . . . . Hackware . | . . . . . Protection 1 | . . . . 1 Artifact . | . . . . . Weapon 13 | 2 1 2 3 5 Energy Gun 4 | 2 1 . . 1 Energy Cannon 3 | . . . 1 2 Ballistic Gun 4 | . . 2 1 1 Ballistic Cannon . | . . . . . Launcher . | . . . . . Special Weapon 1 | . . . 1 . Impact Weapon . | . . . . . Slashing Weapon 1 | . . . . 1 Piercing Weapon . | . . . . . Special Melee Weapon . | . . . . . Unidentified Prototypes 1 | . . . . 1 Parts Lost 10 | . 1 . . 9 Power 2 | . . . . 2 Propulsion 5 | . . . . 5 Utility 2 | . . . . 2 Weapon 1 | . 1 . . . Highest Loss Streak 5 | . 1 . . 5 To Critical Strikes . | . . . . . Average Slot Usage (%) 96 | . 92 97 99 97 Engine 12 | . 14 14 11 10 Leg 37 | . 27 28 43 43 Device 5 | . 7 14 10 1 Storage 12 | . 14 14 11 11 Protection 3 | . . . . 9 Energy Gun 9 | . 28 12 . . Energy Cannon 5 | . . . 5 9 Ballistic Gun 4 | . . 14 16 1 Slashing Weapon 4 | . . . . 9 Naked Turns . | . . . . . Heaviest Build 26 | 11 19 19 24 26 Greatest Support 50 | 20 20 20 40 50 Greatest Overweight (x) 1 | . 1 . . 1 Average Overweight (x) . | . . . . . Largest Inventory Capacity 10 | 8 10 10 10 10 Average Capacity 9 | 7 8 10 10 10 Most Carried 10 | 2 10 10 10 10 Average Carried 7 | . 4 9 9 9 Final Capacity 10 | 8 10 10 10 10 Final Carried 10 | 2 10 9 10 6 Class Distribution -------------------- 64% | Scavenger-Mutant 35% | Mutant Dominant Class ---------------- Mutant | -10/Materials Scavenger-Mutant | -10/Mines Scavenger-Mutant | -9/Materials Scavenger-Mutant | -9/Storage Resources | -11 -10 -10 -9 -9 ----------- Run | Scr Mat Min Mat Sto Matter Collected 670 | 176 136 25 154 179 Remotely . | . . . . . Salvage Created 1705 | . 352 45 282 1026 Parts 99 | . 20 5 23 51 Haulers Intercepted . | . . . . . Recyclers Shooed 1 | . . . . 1 Parts Field Recycled . | . . . . . Retrieved Matter . | . . . . . Parts Self-Destructed . | . . . . . Prevented . | . . . . . Kills | -11 -10 -10 -9 -9 ------- Run | Scr Mat Min Mat Sto Combat Hostiles Destroyed 43 | . 10 3 8 22 Melee 18 | . . . . 18 Guns 21 | . 10 3 5 3 Cannons 4 | . . . 3 1 Classes Destroyed 7 | . 3 . 1 3 Watcher 1 | . 1 . . . Swarmer 10 | . 3 3 4 . Grunt 19 | . 7 . 1 11 Brawler 2 | . . . . 2 Duelist 2 | . . . . 2 Protector 1 | . . . . 1 Sentry 9 | . . . 3 6 Best Kill Streak 4 | . 4 3 4 3 Combat Bots Only 4 | . 2 3 4 3 Max Kills in Single Turn 1 | . 1 1 1 1 Gunslinging . | . . . . . Exploded . | . . . . . Melee 1 | . . . . 1 Uniques/NPCs Destroyed . | . . . . . Combat | -11 -10 -10 -9 -9 -------- Run | Scr Mat Min Mat Sto Damage Taken 2500 | . 512 29 297 1662 Core 550 | . 128 15 43 364 Absorbed by Shields 220 | . . . 119 101 Redirected to Shielding 42 | . . . . 42 Regen/Repaired (Parts) 201 | . 22 . 108 71 Core Remaining (%) 71 | 100 . 42 . . Volleys Fired 123 | . 46 3 29 45 Largest 2 | . 2 2 2 2 Hottest 100 | . 90 90 100 88 Shots Fired 215 | . 92 6 57 60 Gun 171 | . 92 6 47 26 Cannon 43 | . . . 9 34 Launcher . | . . . . . Special 1 | . . . 1 . Kinetic 73 | . . . 47 26 Thermal 142 | . 92 6 10 34 Explosive . | . . . . . Electromagnetic . | . . . . . Robot Hit Streak 12 | . 12 10 11 11 Robot Miss Streak 7 | . 7 . 3 4 Penetration Max . | . . . . . Secondary Targets . | . . . . . Shots Hit Robots 195 | . 55 3 37 100 Core Hits 64 | . 20 3 12 29 Critical Kills . | . . . . . Critical Parts Destroyed . | . . . . . Critical Strikes 6 | . 2 . . 4 Burn 2 | . 2 . . . Sever 4 | . . . . 4 Melee Attacks 67 | . . . . 67 Impact . | . . . . . Slashing 67 | . . . . 67 Piercing . | . . . . . Sneak Attacks . | . . . . . Combat Hostiles . | . . . . . Follow-up Attacks . | . . . . . Damage Inflicted 3415 | . 642 38 381 2354 Guns 1123 | . 642 38 256 187 Cannons 595 | . . . 125 470 Explosions . | . . . . . Melee 1697 | . . . . 1697 Ramming . | . . . . . Kinetic 443 | . . . 256 187 Thermal 1275 | . 642 38 125 470 Explosive . | . . . . . Electromagnetic . | . . . . . Impact . | . . . . . Slashing 1697 | . . . . 1697 Piercing . | . . . . . Highest Corruption 7 | . . . 1 7 Average Corruption 1 | . . . 1 1 Corruption Purged . | . . . . . Corruption Blocked . | . . . . . Effects 16 | . . . 4 12 Message Errors 8 | . . . 3 5 Matter Fused 3 | . . . 1 2 Heat Flow Errors 2 | . . . . 2 Data Loss (minor) 2 | . . . . 2 Data Loss (major) 1 | . . . . 1 Overload Shots . | . . . . . Overflow Damage 20 | . . . . 20 Projectiles . | . . . . . Explosions . | . . . . . Melee 20 | . . . . 20 Knockbacks . | . . . . . Impact . | . . . . . Kinetic . | . . . . . Secondary . | . . . . . Self-Inflicted Damage . | . . . . . Shots . | . . . . . Rammed . | . . . . . Targets Rammed 1 | . . 1 . . Kicked 1 | . . 1 . . Crushed . | . . . . . Highest Temperature 288 | . 108 . 178 288 Average Temperature 65 | . 27 . 59 96 Received Heat Transfer 804 | . 201 . 68 535 Effects 3 | . . . . 3 Energy Bleed 1 | . . . . 1 Interference 2 | . . . . 2 Siege Activations . | . . . . . Robots Corrupted . | . . . . . Combat Hostiles . | . . . . . Parts Fried . | . . . . . Impact Corruptions . | . . . . . Robots Melted . | . . . . . Combat Hostiles . | . . . . . Parts Melted 6 | . 4 . 1 1 Heat Transferred 3012 | . 1823 111 222 856 Parts Sabotaged . | . . . . . Parts Stolen . | . . . . . Parts Stripped . | . . . . . Power Chain Reactions . | . . . . . Missiles Intercepted . | . . . . . Alert | -11 -10 -10 -9 -9 ------- Run | Scr Mat Min Mat Sto Peak Influence 445 | . 265 142 213 445 Initial 72 | . . 72 55 57 Average 148 | . 60 125 92 253 Maximum Alert Level 2 | . 1 . 1 2 Low Security (%) 63 | 100 97 100 98 15 Level 1 35 | . 2 . 1 81 Level 2 1 | . . . . 2 Level 3 . | . . . . . Level 4 . | . . . . . Level 5 . | . . . . . High Security . | . . . . . Max Security . | . . . . . Squads Dispatched 11 | . 3 . 2 6 Investigation 1 | . . . 1 . Extermination . | . . . . . Reinforcement 8 | . 3 . 1 4 Assault 2 | . . . . 2 Garrison . | . . . . . Intercept . | . . . . . Searches Triggered . | . . . . . Construction Impeded . | . . . . . Haulers Reinforced . | . . . . . Active Scanning Responses . | . . . . . Cargo Convoy Interrupts . | . . . . . Stealth | -11 -10 -10 -9 -9 --------- Run | Scr Mat Min Mat Sto Distress Signals 3 | . 3 . . . Communications Jammed . | . . . . . Distress Signals . | . . . . . Times Spotted 72 | . 19 3 9 41 Peak Tracking Total 9 | . 5 3 4 9 Tactical Retreats 5 | . 3 . 1 1 Traps | -11 -10 -10 -9 -9 ------- Run | Scr Mat Min Mat Sto Traps Triggered 2 | . 1 . 1 . Indirectly . | . . . . . Trap Hack Attempts . | . . . . . Triggered . | . . . . . Disarmed . | . . . . . Reprogrammed . | . . . . . Reused . | . . . . . Traps Extracted . | . . . . . Installed . | . . . . . Triggered . | . . . . . Machines | -11 -10 -10 -9 -9 ---------- Run | Scr Mat Min Mat Sto Machines Disabled 1 | . . . . 1 Max in Single Turn 1 | . . . . 1 Machines Sabotaged . | . . . . . Garrisons Compromised . | . . . . . Overloaded Fab Kills . | . . . . . Hacking | -11 -10 -10 -9 -9 --------- Run | Scr Mat Min Mat Sto Machines Accessed 10 | . 4 . 5 1 Terminals 4 | . 1 . 3 . Fabricators . | . . . . . Repair Stations 3 | . 1 . 1 1 Recycling Units 2 | . 2 . . . Scanalyzers 1 | . . . 1 . Garrison Access . | . . . . . Total Hacks 27 | . 9 . 16 2 Successful 23 | . 8 . 13 2 Failed 4 | . 1 . 3 . Catastrophic . | . . . . . Database Lockouts . | . . . . . Manual . | . . . . . Terminals 11 | . 3 . 8 . Fabricators . | . . . . . Repair Stations 10 | . 2 . 6 2 Recycling Units 4 | . 4 . . . Scanalyzers 2 | . . . 2 . Garrison Access . | . . . . . Terminal Hacks 9 | . 2 . 7 . Record 6 | . 1 . 5 . Prototype ID Bank 1 | . . . 1 . Recall Investigation 1 | . . . 1 . Zone Layout 1 | . 1 . . . Fabricator Hacks . | . . . . . Repair Station Hacks 8 | . 2 . 4 2 Scan Component 4 | . 1 . 2 1 Repair 4 | . 1 . 2 1 Recycling Unit Hacks 4 | . 4 . . . Process 1 | . 1 . . . Report Inventory 2 | . 2 . . . Retrieve Matter 1 | . 1 . . . Scanalyzer 2 | . . . 2 . Insert Component 1 | . . . 1 . Analyze 1 | . . . 1 . Garrison Access Hacks . | . . . . . Unauthorized Hacks . | . . . . . Terminals . | . . . . . Fabricators . | . . . . . Repair Stations . | . . . . . Recycling Units . | . . . . . Scanalyzers . | . . . . . Garrison Access . | . . . . . Data Cores Recovered . | . . . . . Used . | . . . . . Hacking Detections 7 | . 2 . 4 1 Full Trace Events 2 | . . . 2 . Feedback Events 1 | . . . 1 . Corruption 1 | . . . 1 . Feedback Blocked . | . . . . . Robot Schematics Acquired . | . . . . . Robots Built . | . . . . . Authchips . | . . . . . Time . | . . . . . Total Robot Build Rating . | . . . . . Part Schematics Acquired 1 | . . . 1 . Parts Built . | . . . . . Authchips . | . . . . . Time . | . . . . . Total Part Build Rating . | . . . . . Parts Repaired 4 | . 1 . 2 1 Time 135 | . 26 . 58 51 Parts Recycled . | . . . . . Recycled Matter 18 | . 18 . . . Retrieved Matter 18 | . 18 . . . Retrieved Components . | . . . . . Parts Scanalyzed 1 | . . . 1 . Part Schematics Acquired 1 | . . . 1 . Parts Damaged . | . . . . . Bothacking | -11 -10 -10 -9 -9 ------------ Run | Scr Mat Min Mat Sto Used RIF Installer . | . . . . . Robots Hacked . | . . . . . Non-combat . | . . . . . Combat . | . . . . . Robot Hacks Applied . | . . . . . Relay Couplers Released . | . . . . . Fabnet Peak Effective % . | . . . . . Robots Rewired . | . . . . . Allies Hacked . | . . . . . Hacks Repelled . | . . . . . Allies | -11 -10 -10 -9 -9 -------- Run | Scr Mat Min Mat Sto Total Allies 2 | . . . . 2 Largest Group 2 | . . . . 2 Highest-Rated Group 62 | . . . . 62 Highest-Rated Ally 31 | . . . . 31 Total Orders . | . . . . . Ally Attacks 19 | . . . . 19 Total Damage 321 | . . . . 321 Kills 5 | . . . . 5 Allies Corrupted . | . . . . . Allies Melted . | . . . . . Intel | -11 -10 -10 -9 -9 ------- Run | Scr Mat Min Mat Sto Robot Analysis Total . | . . . . . Derelict Logs Recovered 1 | . . 1 . . Drone Launches . | . . . . . Drone Recoveries . | . . . . . Exploration | -11 -10 -10 -9 -9 ------------- Run | Scr Mat Min Mat Sto Turns Passed 2930 | 77 938 64 618 1233 Spaces Moved 1275 | 58 494 41 203 479 Core 6 | 6 . . . . Treads . | . . . . . Legs 1269 | 52 494 41 203 479 Wheels . | . . . . . Hover . | . . . . . Flight . | . . . . . Fastest Speed 50 | 50 120 120 120 120 Average Speed 119 | 112 120 120 120 120 Slowest Speed 190 | 120 190 120 120 190 Overloaded Moves . | . . . . . Propulsion Burnouts . | . . . . . Robots Hopped . | . . . . . Cave-ins Triggered . | . . . . . Exploration Rate (%) 28 | 4 63 7 18 52 Regions Visited 4 Branch Regions 2 Pre-discovered Areas . | . . . . . Known Exits Taken 1 | . . . 1 . Unknown Exits Taken 3 | 1 1 1 . . Scrap Searched . | . . . . . Spaces Dug 1 | . . . 1 . Terrain Destroyed 1 | . . . 1 . Melee . | . . . . . Projectile 1 | . . . 1 . AOE . | . . . . . Terrain Rammed . | . . . . . Walls Destroyed . | . . . . . Machines Disabled . | . . . . . Actions | -11 -10 -10 -9 -9 --------- Run | Scr Mat Min Mat Sto Total 2382 | 67 747 50 531 987 Wait 796 | . 180 . 270 346 Move 1271 | 57 493 40 202 479 Hop . | . . . . . Pick Up 41 | 4 12 . 11 14 Fast Attach 19 | 4 5 2 2 6 Attach 26 | 2 3 1 6 14 Detach 7 | . 3 . 1 3 Swap 1 | . . . 1 . Drop 30 | . 5 3 9 13 Fire 123 | . 46 3 29 45 Melee 67 | . . . . 67 Ram . | . . . . . Kick 1 | . . 1 . . Crush . | . . . . . Escape Stasis . | . . . . . Rewire . | . . . . . Trap . | . . . . . Miscellaneous . | . . . . . Route ------- -11/Scrapyard -10/Materials -10/Mines -9/Materials -9/Storage History --------- Turn | Location | Event 5 | -11/Scrapyard | Discovered new exit (range 15) 78 | -11/Scrapyard | Entered Materials 86 | -10/Materials | Discovered new exit (range 16) 307 | -10/Materials | Build established: Mutant 677 | -10/Materials | Repaired Aluminum Leg 917 | -10/Materials | Core integrity fell below 50% 1016 | -10/Materials | Entered Mines 1026 | -10/Mines | Discovered new exit (range 6) 1080 | -10/Mines | Entered Materials 1080 | -9/Materials | Evolved 2 slots: Propulsion x2 1081 | -9/Materials | Identified exit to Storage 1361 | -9/Materials | Build established: Scavenger-Mutant 1598 | -9/Materials | Repaired Aluminum Leg 1632 | -9/Materials | Repaired Shield Generator 1698 | -9/Materials | Entered Storage 1706 | -9/Storage | Met a pair of Derelict thieves 1887 | -9/Storage | Lost 3 parts (1p1n1u) 2113 | -9/Storage | Core integrity fell below 50% 2291 | -9/Storage | Repaired Adv. Beam Cannon 2827 | -9/Storage | Core integrity fell below 20% 2931 | -9/Storage | Destroyed by G-34 Mercenary with Small Laser Last Messages --------------- 02801_ G-34 Mercenary destroyed. 02808_ R-06 Scavenger collects Aluminum Leg. 02811_ R-06 Scavenger collects Sml. Laser. 02814_ R-06 Scavenger collects Heat Sink. 02823_ CP 02921_ Lgt. Angular Momentum Engine destroyed. 02922_ Overheating: Energy bleed (-16). 02922_ R-06 Scavenger collects Lgt. Treads. 02922_ Aluminum Leg destroyed. 02926_ R-06 Scavenger collects Rnf. Ion Engine. Map ----- +----------------------------------------------------+ | ??????????????????????????????????????????????? | | ??????????????????????????????????????????????? | | ??????????????????????????????????????????????? | | ??????????????????????????????????????????????? | | ??????????????????????????????????????????????? | | ??????????????????????????????????????????????? | | ??????????????????????????????????????????????? | | ??????????????????????????????????????????????? | | ??????????????????????????????????????????????? | | ??????????????????????????????????????????????? | | ?????????????????????? ??????????????????????? | | ?????????????????????? ????????????????#####?? | | ?????????????????????? #??????????????#]]]#?? | | ?????????????????????? #??????????????#]]]#?? | | ?????????????????????? #??????????????# #?? | | ?????????????????????# ##?????????????# #?? | | ????????????????????? ?????????#######+#### | | ????????????????????? ?????????# | | ????????????????????? T ?????????# | | ????????????????????? ??????????# | | ????????????????????? ??????????######## # | | ?????????????????????# #????????#"???????# # | | ?????????????????????#g #????##+##"T"####?# # | | ?????????????????????# g#????? # # | | ?????????????????????# r#?????? # # | | ?????????????????????#@ #???????????""""" + # | | ?????????????????????# %#???????????""""" # # | | ?????????????????????# #???????????""""" # # | | ?????????????????????# #??????????? ?# # | | ?????????????????????# #??????????" "###?# # | | ?????????????????????#g #??????????"Y??#####/## | | ?????????????????????# Y#??????????????# | | ?????????????????????# ###########????# """ "" | | ????????????????????## ###### """ "" | | ????????????????????#T %[ / """ "" | | ????????????????????## #########+###### | | ?????????????????????# ## #???# | | ????????????????????## ## """" #???# | | ????????????###+##+## # ""??" #???# | | ????????? # ""???" #???######## | | ????????? + "???"" #????# | | ????????????????##/## # "??"" #????# """" | | ????????????????? ?###### """" #????# "??? | | ???????????????? ???????# #????# "??" | | ??????????????? "????##########/####????# ""??" | | ?????????????????????#"""#????# #???????# "???" | | ?????????????????????#"R"#????# #???????# """"" | | ????????????????????##" "###### #???????# %!!! | | ????????????????????# # #???????# =%*%% | | ????????????????????# # #############/# | +----------------------------------------------------+ Best States ------------- Heat Dissipation 42 Energy Generation 18 Energy Capacity 265 Matter Stores 300 Matter Capacity 300 Sight Range 16 Terrain Scan Density 10 Core Shielding 20 Evasion (%) 55 Item Schematics ----------------- Imp. Heat Sink | -9/Materials | Scanalyzed Robot Schematics ------------------ None Fabricated ------------ Nothing Alien Tech Used ----------------- None Achievements -------------- GoHome() Challenges ------------ None Game ------ Seed NodeShockSuite Manual? 0 Play Time 00:28:41 Cumulative 13.3 hours Start 2022.03.23 @ 13:53:34 End 2022.03.23 @ 14:23:42 Sessions 1 Manual Loads 0 Difficulty Rogue Special Mode None Game No. 23 Rogue 22 Adventurer 1 Explorer 0 Win Type - Total 0 Types 0/0/0/0/0/0/0/0/0 Lore% 11 Gallery% 19 Achievement% 13 Wizard Run 0 Options --------- ASCII 0 Keyboard 1 Movement Numpad Keybinds 0 Fullscreen 1 Font 24/Smallcaps Map View 76x50 Tactical HUD 1 Map Filters NONE Filters NONE Steam 1 RUN: 2c9374cf-0a76-43d7-9bdb-9dee795532cd